bitfinex/quotes_SOLUSD_20260119
["timestamp","ask_amount","ask_price","bid_price","bid_amount"]
[1768865116748,23.6773405,133.44,133.42,1.62088047]
[1768865118552,23.6773405,133.44,133.42,4.64935734]
[1768865118738,23.6773405,133.44,133.43,1.62088047]
[1768865118942,20.93262591,133.44,133.43,1.62088047]
[1768865119246,20.93262591,133.44,133.43,4.64935734]
[1768865119639,0.2,133.46,133.43,19.44847687]
[1768865119939,0.2,133.46,133.42,26.23291321]
[1768865119940,1.87242302,133.46,133.42,3.05251554]
[1768865120251,1.67242302,133.45,133.4,0.02403867]
[1768865120452,1.67242302,133.45,133.41,19.44847687]
[1768865120653,1.67242302,133.45,133.41,26.94416463]
[1768865120954,1.67242302,133.45,133.41,26.98001594]
[1768865121656,1.67242302,133.45,133.41,23.95153907]
[1768865121855,1.67242302,133.45,133.41,26.98001594]
[1768865123055,1.67242302,133.45,133.41,19.44847687]
[1768865123255,1.67242302,133.45,133.41,27.01185683]
[1768865124264,0.2,133.46,133.43,3.08747348]
[1768865124948,1.96947384,133.46,133.43,3.02847687]
[1768865126962,1.96947384,133.46,133.42,10.58246152]
[1768865128046,9.46241523,133.46,133.42,3.08747348]
[1768865128263,1.96947384,133.46,133.42,10.58249222]
[1768865130543,1.96947384,133.46,133.42,3.08747348]
[1768865131078,1.96947384,133.46,133.42,10.57396756]
[1768865133276,0.2,133.46,133.44,3.0198735]
[1768865134060,0.2,133.46,133.42,7.49509745]
[1768865134261,0.2,133.46,133.44,3.0198735]
[1768865134463,0.2,133.46,133.43,7.49450501]
[1768865134659,0.2,133.46,133.44,3.0198735]
[1768865134858,0.2,133.46,133.44,10.51386779]
[1768865135066,0.2,133.46,133.44,26.93386779]
[1768865135267,0.2,133.46,133.44,19.4398735]
[1768865135881,0.2,133.46,133.45,3.0198735]
[1768865136175,0.2,133.48,133.45,10.51325398]
[1768865136475,0.2,133.48,133.46,3.0198735]
[1768865138179,0.2,133.48,133.45,7.49328199]
[1768865138380,0.2,133.48,133.45,10.51315549]
[1768865138562,0.2,133.48,133.46,10.51255335]
[1768865139285,0.2,133.48,133.47,16.42]
[1768865139488,0.2,133.49,133.47,19.4098735]
[1768865139781,0.2,133.51,133.48,3.0198735]
[1768865139980,0.2,133.52,133.5,3.0198735]
[1768865140167,0.2,133.52,133.51,3.0198735]
[1768865140679,0.2,133.52,133.5,16.42]
[1768865141384,0.2,133.52,133.5,26.93049558]
[1768865142185,0.2,133.52,133.5,23.91062208]
[1768865142362,0.2,133.52,133.5,26.93049558]
[1768865142560,1e-08,133.53,133.51,3.0198735]
[1768865142771,0.2,133.57,133.52,3.0198735]
[1768865142960,0.2,133.57,133.56,3.0198735]
[1768865143160,0.2,133.57,133.55,3.0198735]
[1768865143897,1.86838252,133.57,133.54,16.4]
[1768865144867,9.3551428,133.57,133.54,16.4]
[1768865145295,1.66838252,133.56,133.54,16.4]
[1768865145494,1.66838252,133.56,133.52,16.4]
[1768865145703,1.66838252,133.56,133.52,19.4198735]
[1768865145880,1.66838252,133.56,133.52,16.4]
[1768865146198,1.66838252,133.56,133.52,19.4198735]
[1768865146394,1.66838252,133.55,133.52,19.4198735]
[1768865146796,1.66838252,133.55,133.52,16.4]
[1768865147182,1.66838252,133.55,133.51,3.0198735]
[1768865147378,1.66838252,133.54,133.49,10.51098424]
[1768865147577,1.66838252,133.53,133.49,23.89111074]
[1768865147778,1.66838252,133.53,133.49,26.91098424]
[1768865148004,1.66838252,133.55,133.5,10.51029375]
[1768865148306,1.66838252,133.54,133.5,3.0198735]
[1768865149506,1.66838252,133.54,133.51,3.0198735]
[1768865150299,1.66838252,133.54,133.5,10.51034168]
[1768865150601,9.15687632,133.54,133.5,3.0198735]
[1768865152303,9.15687632,133.54,133.49,23.89099779]
[1768865152494,9.15687632,133.54,133.5,3.0198735]
[1768865154423,9.15687632,133.54,133.45,5.9565132]
[1768865154424,1.66299746,133.52,133.46,10.51274435]
[1768865154590,1.66299746,133.52,133.47,16.4]
[1768865155103,1.66299746,133.52,133.46,10.51274435]
[1768865155299,1.66299746,133.51,133.46,26.91274435]
[1768865156300,1.66299746,133.5,133.46,26.91274435]
[1768865158831,1.66299746,133.49,133.45,10.51306147]
[1768865158996,1.66299746,133.49,133.46,16.4]
[1768865159415,1.66299746,133.49,133.46,23.89282824]
[1768865159814,1.66299746,133.49,133.46,16.4]
[1768865160016,1.66299746,133.49,133.44,7.49376668]
[1768865160222,1.66299746,133.49,133.45,16.4]
[1768865160704,1.66299746,133.48,133.45,16.4]
[1768865161214,1.66299746,133.48,133.42,7.49466652]
[1768865161412,1.66299746,133.47,133.43,16.4]
[1768865162118,1.66299746,133.47,133.43,23.89444121]
[1768865162421,1.66299746,133.49,133.45,7.49321041]
[1768865162918,1.66299746,133.5,133.45,3.0198735]
[1768865163123,1.66299746,133.5,133.46,16.4]
[1768865164118,9.15283185,133.52,133.46,26.9127356]
[1768865164312,1.66299746,133.51,133.46,26.9127356]
[1768865164619,1.66299746,133.51,133.47,3.0198735]
[1768865164817,1.66299746,133.51,133.46,26.9127356]
[1768865165016,1.66299746,133.5,133.46,16.4]
[1768865165514,1.66299746,133.5,133.46,23.89287503]
[1768865167115,1.66299746,133.5,133.46,26.91274853]
[1768865167416,1.66299746,133.5,133.46,23.89287503]
[1768865168125,1.66299746,133.49,133.45,7.49331831]
[1768865168307,1.66299746,133.49,133.46,16.4]
[1768865168508,4.68287096,133.48,133.42,3.0198735]
[1768865168800,1.66299746,133.47,133.43,23.89425259]
[1768865170509,1.66299746,133.47,133.43,7.49425259]
[1768865170704,1.66299746,133.47,133.43,23.89425259]
[1768865170921,1.66299746,133.46,133.38,18.98475723]
[1768865171219,1.66299746,133.44,133.4,7.49590652]
[1768865171521,1.66299746,133.44,133.41,7.49563065]
[1768865171822,1.66299746,133.44,133.4,7.49600301]
[1768865172304,1.66299746,133.44,133.4,23.89600301]
[1768865173020,1.66299746,133.43,133.4,16.4]
[1768865174725,1.66299746,133.45,133.4,10.51609971]
[1768865174925,1.66299746,133.46,133.41,3.0198735]
[1768865177721,1.66299746,133.45,133.4,18.74062968]
[1768865178025,1.66299746,133.45,133.41,3.0198735]
[1768865179517,1.66299746,133.45,133.41,10.51533787]
[1768865180532,1.66299746,133.45,133.4,29.25675505]
[1768865181113,1.66299746,133.45,133.41,3.0198735]
[1768865181508,1.66299746,133.45,133.41,10.51503822]
[1768865182926,1.55459264,133.44,133.4,7.49610661]
[1768865183231,1.49459265,133.44,133.4,23.91610661]
[1768865183807,1.43459266,133.44,133.4,23.91610661]
[1768865186032,1.43459266,133.44,133.4,7.49610661]
[1768865192539,1.43459266,133.44,133.4,10.51598011]
[1768865192926,1.43459266,133.44,133.4,10.51720756]
[1768865194518,1.55459264,133.43,133.4,7.49610661]
[1768865195324,1.55459264,133.43,133.36,98.99092731]
[1768865195325,1.55459264,133.41,133.37,3.02110095]
[1768865195515,1.55459264,133.41,133.38,16.42]
[1768865195938,1.55459264,133.41,133.38,23.91709739]
[1768865196331,1.55459264,133.41,133.38,16.42]
[1768865200651,1.55459264,133.41,133.38,23.91729559]
[1768865201143,1.55459264,133.41,133.38,16.42]
[1768865201345,1.55459264,133.41,133.38,23.91735533]
[1768865202048,1.55459264,133.41,133.38,26.93845628]
[1768865202561,1.49549333,133.43,133.39,3.02110095]
[1768865203734,1.49549333,133.43,133.39,10.51788056]
[1768865203931,1.49549333,133.44,133.4,3.02110095]
[1768865204133,1.49549333,133.45,133.42,3.02110095]
[1768865204352,1.49549333,133.45,133.41,16.42]
[1768865204647,1.49549333,133.45,133.42,3.02110095]
[1768865205454,18.73015588,133.48,133.42,3.02110095]
[1768865205455,1.49549333,133.48,133.44,3.02110095]
[1768865205636,1.49549333,133.49,133.45,3.02110095]
[1768865207057,1.49549333,133.49,133.44,26.93472452]
[1768865208352,1.49549333,133.48,133.44,23.91362357]
[1768865208552,1.49549333,133.48,133.44,26.93472452]
[1768865211165,1.49549333,133.48,133.44,10.51472452]
[1768865211459,0.99549333,133.48,133.44,27.14020204]
[1768865211637,0.99549333,133.48,133.45,3.02110095]
[1768865212735,7.49025224,133.51,133.46,3.02110095]
[1768865212957,10.51135319,133.51,133.46,3.02110095]
[1768865213256,1.57662451,133.5,133.45,7.69628247]
[1768865213560,1.57662451,133.5,133.46,3.02110095]
[1768865213771,1.57662451,133.5,133.47,3.02110095]
[1768865214860,1.57662451,133.5,133.47,26.93323107]
[1768865217062,1.57662451,133.5,133.47,23.91213012]
[1768865217860,1.57662451,133.5,133.47,26.93323107]
[1768865218068,1.57662451,133.5,133.47,16.42]
[1768865218470,1.57662451,133.5,133.46,10.51374893]
[1768865218640,1.57662451,133.5,133.46,16.4]
[1768865218641,1.57662451,133.49,133.46,16.4]
[1768865218840,1.57662451,133.49,133.45,19.42110095]
[1768865219444,1.57662451,133.49,133.45,26.91453254]
[1768865219762,1.57662451,133.49,133.45,27.09345772]
[1768865220957,7.49123349,133.49,133.45,27.09345772]
[1768865221162,1.57662451,133.48,133.45,26.91453254]
[1768865221551,1.57662451,133.47,133.42,26.91593938]
[1768865221757,1.57662451,133.47,133.42,28.4224281]
[1768865221958,3.02110095,133.47,133.42,1.50648872]
[1768865222151,1.57662451,133.46,133.42,17.90648872]
[1768865223355,1.57662451,133.46,133.43,1.50648872]
[1768865223859,1.57662451,133.46,133.42,25.40151755]
[1768865224054,9.06953447,133.46,133.42,28.4226185]
[1768865224251,1.57662451,133.46,133.42,28.4226185]
[1768865225358,1.57662451,133.45,133.42,20.92758967]
[1768865226264,1.57662451,133.45,133.42,28.42271676]
[1768865228865,1.57662451,133.45,133.42,25.40161581]
[1768865229066,1.57662451,133.45,133.42,17.90648872]
[1768865229363,1.57662451,133.45,133.42,10.51620395]
[1768865229571,1.57662451,133.45,133.42,12.02269267]
[1768865230142,7.49259293,133.47,133.42,10.51620395]
[1768865230346,9.06921744,133.47,133.43,1.50648872]
[1768865230545,1.57662451,133.46,133.43,1.50648872]
[1768865231265,1.57662451,133.48,133.44,1.50648872]
[1768865231457,1.57662451,133.48,133.45,4.52758967]
[1768865233564,1.57662451,133.49,133.46,1.50648872]
[1768865237072,7.49068327,133.5,133.47,1.50648872]
[1768865237256,1.57662451,133.5,133.47,1.50648872]
[1768865241473,1.57662451,133.49,133.46,28.44033863]
[1768865243975,1.57662451,133.49,133.46,25.41923768]
[1768865247657,1.57662451,133.49,133.46,28.44033863]
[1768865248071,1.57662451,133.49,133.46,25.41923768]
[1768865248273,1.57662451,133.49,133.46,28.44033863]
[1768865248466,1.57662451,133.49,133.46,25.41923768]
[1768865248668,9.06794987,133.49,133.46,1.50648872]
[1768865248875,1.47731793,133.48,133.45,16.4]
[1768865249067,1.47731793,133.48,133.45,17.84668576]
[1768865249675,1.47731793,133.48,133.45,1.44668576]
[1768865249879,1.47731793,133.48,133.43,73.46211622]
[1768865250177,1.47731793,133.47,133.44,16.4]
[1768865251693,1.47731793,133.46,133.42,1.44668576]
[1768865254064,1.47731793,133.45,133.42,1.44668576]
[1768865257065,1.41731794,133.45,133.42,1.44668576]
[1768865257804,10.51431022,133.45,133.4,1.44668576]
[1768865257966,3.02081779,133.44,133.4,17.86668576]
[1768865258169,7.49349243,133.45,133.4,17.86668576]
[1768865258501,10.51431022,133.45,133.4,17.86668576]
[1768865258869,10.51431022,133.45,133.4,1.44668576]
[1768865259073,1.47731793,133.43,133.4,1.44668576]
[1768865259301,1.47731793,133.43,133.39,17.86668576]
[1768865260174,1.47731793,133.43,133.39,1.44668576]
[1768865260491,1.47731793,133.42,133.38,1.44668576]
[1768865261195,1.47731793,133.42,133.39,1.44668576]
[1768865263188,1.47731793,133.42,133.38,7.49728452]
[1768865263395,1.59057058,133.42,133.39,1.63008309]
[1768865265388,9.08570124,133.42,133.39,1.63008309]
[1768865271889,1.59057058,133.39,133.35,1.63008309]
[1768865272083,1.48292065,133.39,133.36,1.63008309]
[1768865276302,8.97975397,133.39,133.36,1.63008309]
[1768865276485,12.00057176,133.39,133.36,1.63008309]
[1768865276692,4.67546523,133.38,133.35,18.07280026]
[1768865276906,1.59464745,133.38,133.35,18.07280026]
[1768865278621,10.5182413,133.38,133.35,1.65280026]
[1768865278905,10.5182413,133.38,133.34,7.4994218]
[1768865278906,1.65464744,133.37,133.33,23.9201257]
[1768865279102,1.65464744,133.37,133.34,1.65280026]
[1768865281987,4.67546523,133.37,133.34,1.65280026]
[1768865282193,12.17350087,133.37,133.34,1.65280026]
[1768865283105,1.65464744,133.36,133.32,1.85280026]
[1768865283308,1.65464744,133.35,133.32,1.85280026]
[1768865283606,4.61546524,133.35,133.32,1.85280026]
[1768865284411,1.59464745,133.35,133.32,1.85280026]
[1768865284591,4.61546524,133.35,133.32,1.85280026]
[1768865285513,12.11458782,133.35,133.32,1.85280026]
[1768865286014,9.09377003,133.35,133.32,1.85280026]
[1768865286392,1.65464744,133.34,133.32,1.85280026]
[1768865286611,7.49912258,133.35,133.32,1.85280026]
[1768865286801,10.51939371,133.36,133.32,1.85280026]
[1768865287003,10.5181937,133.38,133.33,1.65280026]
[1768865287198,7.49737591,133.38,133.33,1.65280026]
[1768865287398,3.02081779,133.4,133.35,1.65280026]
[1768865287598,3.02081779,133.42,133.37,1.65280026]
[1768865287915,21.75776122,133.43,133.38,1.65280026]
[1768865288616,9.15026093,133.42,133.38,1.65280026]
[1768865289108,9.15026093,133.42,133.38,10.5181414]
[1768865289416,1.65464744,133.42,133.39,1.65280026]
[1768865290214,9.1494607,133.43,133.39,1.65280026]
[1768865293012,1.65464744,133.44,133.4,1.65280026]
[1768865293213,9.14873827,133.44,133.41,1.65280026]
[1768865293796,1.65464744,133.45,133.42,4.67361805]
[1768865294114,9.14764349,133.46,133.43,1.65280026]
[1768865295114,9.14764349,133.46,133.42,4.67361805]
[1768865295316,9.14764349,133.46,133.42,1.65280026]
[1768865297402,1.65464744,133.45,133.42,1.65280026]
[1768865297921,9.14764349,133.46,133.42,4.67361805]
[1768865298226,9.14764349,133.46,133.42,1.65280026]
[1768865299021,9.14764349,133.46,133.43,1.65280026]
[1768865300147,1.65464744,133.44,133.39,1.65280026]
[1768865300428,3.01846523,133.43,133.38,1.65280026]
[1768865300908,10.51356938,133.43,133.38,1.65280026]
[1768865301309,10.51356938,133.43,133.38,9.15015671]
[1768865301712,10.51356938,133.43,133.39,1.65280026]
[1768865302530,1.28230163,133.42,133.39,1.65280026]
[1768865302829,4.30311942,133.41,133.37,1.65280026]
[1768865303717,1.28533105,133.39,133.36,1.57461825]
[1768865303921,10.51596294,133.42,133.37,1.57461825]
[1768865304228,7.49514515,133.42,133.38,1.57461825]
[1768865304628,10.51596294,133.42,133.38,1.57461825]
[1768865305828,11.74425423,133.42,133.38,1.57461825]
[1768865307431,8.72343644,133.42,133.38,1.57461825]
[1768865307630,11.74425423,133.42,133.38,1.57461825]
[1768865310429,7.49514515,133.42,133.38,1.57461825]
[1768865310634,11.78198165,133.44,133.39,1.57461825]
[1768865311632,11.78198165,133.44,133.4,1.57461825]
[1768865312936,8.76116386,133.44,133.4,1.57461825]
[1768865313638,8.7816149,133.46,133.42,1.57461825]
[1768865313819,8.78108798,133.47,133.42,1.57461825]
[1768865314020,7.49259225,133.47,133.43,1.57461825]
[1768865315441,8.79507521,133.47,133.43,1.57461825]
[1768865316333,7.49259225,133.47,133.43,1.57461825]
[1768865316541,7.49259225,133.47,133.44,1.57461825]
[1768865320145,1.30935632,133.48,133.45,1.57461825]
[1768865320513,1.33606928,133.49,133.45,9.06805508]
[1768865320717,8.82698052,133.5,133.46,1.57461825]
[1768865321435,1.34896993,133.49,133.46,1.57461825]
[1768865321628,1.34896993,133.48,133.44,1.64996856]
[1768865321928,1.34896993,133.48,133.45,1.64996856]
[1768865322436,11.866453,133.49,133.45,1.64996856]
[1768865322644,8.84673425,133.49,133.45,1.64996856]
[1768865324148,4.3874893,133.48,133.43,1.64996856]
[1768865324358,4.3874893,133.48,133.44,1.64996856]
[1768865324946,1.36777055,133.48,133.44,1.64996856]
[1768865326044,11.87948939,133.48,133.44,1.64996856]
[1768865326262,11.87948939,133.48,133.42,16.42]
[1768865326263,4.39966589,133.46,133.42,1.64996856]
[1768865326544,1.37994714,133.45,133.42,1.64996856]
[1768865328532,8.87347601,133.45,133.42,1.64996856]
[1768865332463,1.37994714,133.45,133.42,1.64996856]
[1768865335929,1.31994715,133.45,133.42,1.64996856]
[1768865341762,7.49315706,133.46,133.42,1.64996856]
[1768865341763,1.40800455,133.47,133.43,1.71382658]
[1768865342062,4.4277233,133.47,133.43,1.71382658]
[1768865342960,11.92004602,133.47,133.43,1.71382658]
[1768865343348,11.92004602,133.47,133.43,9.20838372]
[1768865343349,8.90032727,133.47,133.43,9.20838372]
[1768865344861,4.44288746,133.46,133.42,1.71382658]
[1768865346363,11.93601112,133.46,133.42,1.71382658]
[1768865347064,1.42316871,133.46,133.42,1.71382658]
[1768865347251,11.93595742,133.46,133.42,1.71382658]
[1768865347561,8.91623867,133.46,133.42,1.71382658]
[1768865349747,1.42316871,133.46,133.43,1.71382658]
[1768865351943,8.94917423,133.47,133.43,1.71382658]
[1768865352450,97.00622097,133.48,133.44,1.71382658]
[1768865352855,97.00622097,133.48,133.45,1.71382658]
[1768865353057,1.46563167,133.48,133.45,1.71382658]
[1768865354068,1.47008299,133.47,133.44,18.13382658]
[1768865355770,8.96647996,133.48,133.45,1.71382658]
[1768865358759,1.47448319,133.48,133.43,1.71382658]
[1768865358968,4.50710159,133.47,133.43,18.13382658]
[1768865359159,1.49158432,133.46,133.42,18.13382658]
[1768865359475,1.49158432,133.46,133.43,1.71382658]
[1768865359769,8.98467325,133.46,133.43,1.71382658]
[1768865362766,12.004392,133.46,133.43,1.71382658]
[1768865363677,8.98467325,133.46,133.43,1.71382658]
[1768865363971,12.004392,133.46,133.43,1.71382658]
[1768865365651,8.98467325,133.46,133.43,1.71382658]
[1768865365851,12.004392,133.46,133.43,1.71382658]
[1768865368252,8.98467325,133.46,133.43,1.71382658]
[1768865374255,1.5526072,133.45,133.42,1.80471172]
[1768865375473,9.04914845,133.46,133.42,1.80471172]
[1768865382589,9.04914845,133.46,133.42,4.82536943]
[1768865382885,9.04914845,133.46,133.43,1.85089625]
[1768865391382,12.12278481,133.46,133.43,1.85089625]
[1768865391584,9.1021271,133.46,133.43,1.85089625]
[1768865391886,12.12278481,133.46,133.43,1.85089625]
[1768865392188,9.1021271,133.46,133.43,1.85089625]
[1768865399187,1.63314662,133.47,133.43,1.85089625]
[1768865399394,1.63314662,133.49,133.46,1.91532473]
[1768865399675,9.12378332,133.5,133.46,3.02065771]
[1768865399878,9.12378332,133.5,133.47,1.91532473]
[1768865400403,9.12631056,133.5,133.47,1.91532473]
[1768865400697,1.63567386,133.49,133.44,1.91532473]
[1768865400901,9.12828412,133.47,133.44,1.91532473]
[1768865401110,9.13013781,133.48,133.42,1.91532473]
[1768865401278,9.13013781,133.48,133.44,1.91532473]
[1768865403105,1.64308277,133.47,133.44,1.91532473]
[1768865403682,1.64308277,133.46,133.43,1.91532473]
[1768865403879,7.4915694,133.49,133.44,3.02065771]
[1768865404081,7.4915694,133.49,133.45,1.91532473]
[1768865404443,9.13706529,133.49,133.45,1.91532473]
[1768865404596,1.64549589,133.48,133.45,1.91532473]
[1768865404899,9.13706529,133.49,133.45,1.91532473]
[1768865405098,7.4915694,133.49,133.45,1.91532473]
[1768865405300,9.1387734,133.5,133.47,1.91532473]
[1768865406188,1.6502393,133.52,133.47,1.91532473]
[1768865406382,1.6502393,133.52,133.48,1.91532473]
[1768865407082,1.65257022,133.51,133.48,1.91532473]
[1768865407510,9.14208489,133.52,133.48,1.91532473]
[1768865408015,1.65487436,133.51,133.48,1.91532473]
[1768865409621,9.14666672,133.52,133.48,1.91532473]
[1768865409904,9.14666672,133.52,133.48,4.93598244]
[1768865410482,9.14666672,133.52,133.49,1.91532473]
[1768865410909,4.68006128,133.51,133.48,1.91532473]
[1768865411096,1.65940357,133.51,133.48,1.91532473]
[1768865411487,9.1511439,133.52,133.48,1.91532473]
[1768865411914,1.66162923,133.51,133.48,1.91532473]
[1768865412904,9.15185284,133.51,133.47,1.91532473]
[1768865413106,1.66600415,133.49,133.46,1.91532473]
[1768865413408,1.66600415,133.5,133.47,1.91532473]
[1768865413589,9.15622776,133.51,133.47,1.91532473]
[1768865414203,12.17688547,133.51,133.47,1.91532473]
[1768865414702,1.66815399,133.5,133.47,1.91532473]
[1768865414899,4.6888117,133.5,133.46,1.91532473]
[1768865415105,12.17969696,133.5,133.46,1.91532473]
[1768865417711,30.90628872,133.5,133.46,1.91532473]
[1768865418008,4.69511422,133.47,133.44,1.91532473]
[1768865418208,3.02065771,133.46,133.44,1.91532473]
[1768865418613,4.69716698,133.46,133.43,1.91532473]
[1768865419089,3.02065771,133.46,133.43,1.91532473]
[1768865419290,1.67853845,133.47,133.43,1.91532473]
[1768865419584,3.02065771,133.46,133.43,1.91532473]
[1768865419787,10.51388651,133.46,133.43,1.91532473]
[1768865420115,7.4932288,133.46,133.43,1.91532473]
[1768865420316,7.4924753,133.47,133.43,1.91532473]
[1768865421190,7.49197653,133.48,133.44,1.91532473]
[1768865421394,35.14734642,133.5,133.45,1.91532473]
[1768865421395,20.40987359,133.5,133.45,1.91532473]
[1768865421595,23.4305313,133.5,133.45,1.91532473]
[1768865421990,7.49145374,133.49,133.45,1.91532473]
[1768865424131,7.49084255,133.5,133.46,1.94530757]
[1768865424909,7.49084255,133.5,133.46,4.96596528]
[1768865425100,7.49084255,133.5,133.47,1.94530757]
[1768865425300,9.18294747,133.5,133.47,1.94530757]
[1768865427692,7.49084255,133.5,133.47,1.94530757]
[1768865429190,1.69937861,133.52,133.47,3.02065771]
[1768865429419,1.69937861,133.52,133.48,1.94530757]
[1768865430314,9.18909454,133.52,133.48,1.94530757]
[1768865430520,1.70114511,133.51,133.48,1.94530757]
[1768865431222,7.48971593,133.52,133.48,1.94530757]
[1768865431795,9.19260726,133.52,133.48,1.94530757]
[1768865432420,1.70461749,133.51,133.48,1.94530757]
[1768865432629,4.7252752,133.49,133.45,1.94530757]
[1768865433316,4.7252752,133.49,133.46,1.94530757]
[1768865434224,3.02065771,133.49,133.46,1.94530757]
[1768865434412,9.19892374,133.5,133.46,1.94530757]
[1768865434808,12.21958145,133.5,133.46,1.94530757]
[1768865435708,9.19892374,133.5,133.46,1.94530757]
[1768865435904,7.4903084,133.51,133.47,1.94530757]
[1768865437204,1.71295541,133.5,133.47,1.94530757]
[1768865437410,4.73109336,133.5,133.47,1.94530757]
[1768865438111,7.4903084,133.51,133.47,1.94530757]
[1768865438419,10.50844635,133.51,133.47,1.94530757]
[1768865438820,12.22301232,133.51,133.47,1.94530757]
[1768865439214,9.20487437,133.51,133.47,1.94530757]
[1768865439427,12.22301232,133.51,133.47,1.94530757]
[1768865439627,4.73429599,133.5,133.46,1.94530757]
[1768865440128,1.71615804,133.5,133.46,1.94530757]
[1768865440332,4.73429599,133.5,133.46,1.94530757]
[1768865440631,3.01813795,133.5,133.46,1.94530757]
[1768865440827,4.73586977,133.5,133.46,1.94530757]
[1768865442239,9.21354337,133.49,133.46,1.94530757]
[1768865442438,12.23168132,133.49,133.45,1.81291899]
[1768865442639,9.21354337,133.49,133.45,1.81291899]
[1768865442816,12.23168132,133.49,133.45,1.81291899]
[1768865443838,10.50933579,133.49,133.45,1.81291899]
[1768865445525,1.72384824,133.5,133.45,1.81291899]
[1768865445526,7.49087936,133.5,133.46,1.81291899]
[1768865446034,9.21913296,133.5,133.46,1.81291899]
[1768865446533,7.49031624,133.51,133.47,1.81291899]
[1768865446739,7.49031624,133.51,133.48,1.81291899]
[1768865447630,114.36815279,133.53,133.48,1.81291899]
[1768865447944,7.48975435,133.52,133.48,1.81291899]
[1768865448517,104.86382703,133.53,133.48,9.30456537]
[1768865448713,103.13413858,133.53,133.49,1.81291899]
[1768865449037,7.58904624,133.53,133.49,1.81291899]
[1768865449236,0.1,133.53,133.5,1.81291899]
[1768865449465,9.32157961,133.53,133.5,1.81291899]
[1768865450331,12.33971756,133.53,133.5,1.81291899]
[1768865450528,1.73389487,133.51,133.48,1.81291899]
[1768865450922,4.75203282,133.52,133.48,1.81291899]
[1768865451542,1.73389487,133.52,133.48,1.81291899]
[1768865451838,12.24391261,133.51,133.47,1.81291899]
[1768865452028,10.50790759,133.52,133.47,1.81291899]
[1768865452553,7.48976964,133.52,133.48,1.81291899]
[1768865452720,12.34263883,133.53,133.48,1.81291899]
[1768865453132,7.58923596,133.53,133.49,1.82880385]
[1768865453629,0.1,133.53,133.49,1.82880385]
[1768865453825,0.1,133.53,133.5,1.82880385]
[1768865454444,7.48853104,133.54,133.51,1.82880385]
[1768865454746,1.82258137,133.55,133.51,1.82880385]
[1768865456137,9.31070878,133.55,133.51,1.82880385]
[1768865457329,9.31070878,133.55,133.51,4.8469418]
[1768865457530,1.82258137,133.55,133.52,1.82880385]
[1768865457732,1.82258137,133.55,133.52,1.79880388]
[1768865458740,9.31041777,133.55,133.52,1.79880388]
[1768865460535,12.32855572,133.55,133.52,1.79880388]
[1768865460733,9.31041777,133.55,133.52,1.79880388]
[1768865460954,12.32855572,133.55,133.52,1.79880388]
[1768865462030,9.31041777,133.55,133.52,1.79880388]
[1768865462552,9.31041777,133.55,133.52,1.76880391]
[1768865464036,12.32855572,133.55,133.52,1.76880391]
[1768865464355,9.31041777,133.55,133.52,1.76880391]
[1768865464529,12.32855572,133.55,133.52,1.76880391]
[1768865464730,1.82258137,133.54,133.51,1.82880385]
[1768865464933,28.02999845,133.55,133.51,4.8469418]
[1768865465130,28.02999845,133.55,133.51,1.82880385]
[1768865466067,9.31005193,133.56,133.51,1.82880385]
[1768865466664,9.31005193,133.56,133.52,4.8469418]
[1768865467859,9.31005193,133.56,133.53,1.82880385]
[1768865468858,7.48747056,133.56,133.53,1.82880385]
[1768865469268,9.31005193,133.56,133.53,1.82880385]
[1768865469440,95.74509234,133.57,133.55,1.82880385]
[1768865469644,0.2,133.57,133.55,1.79880389]
[1768865469848,7.68673442,133.57,133.55,1.79880389]
[1768865470045,9.50931579,133.57,133.53,3.01813795]
[1768865470247,9.50931579,133.57,133.52,7.48927643]
[1768865470449,9.50931579,133.57,133.52,23.88927643]
[1768865470663,9.50931579,133.57,133.52,26.90741438]
[1768865471763,9.50931579,133.57,133.53,1.82880385]
[1768865473355,7.68673442,133.57,133.54,1.82880385]
[1768865473552,0.2,133.57,133.56,1.82880385]
[1768865473754,0.1,133.58,133.56,3.01813795]
[1768865475161,0.1,133.59,133.55,3.01813795]
[1768865475365,1.92258137,133.59,133.55,3.01813795]
[1768865475568,1.92258137,133.59,133.55,19.41813795]
[1768865475864,0.1,133.59,133.56,1.82880385]
[1768865476063,1.92258137,133.59,133.55,18.22880385]
[1768865476266,1.82258137,133.58,133.54,4.8469418]
[1768865476461,1.82258137,133.58,133.54,1.82880385]
[1768865477572,9.30896312,133.58,133.54,1.82880385]
[1768865478050,9.40831972,133.59,133.55,1.82880385]
[1768865478364,9.40831972,133.59,133.56,1.82880385]
[1768865478567,0.1,133.59,133.56,1.79880388]
[1768865478869,0.1,133.59,133.54,7.48829575]
[1768865478870,0.1,133.59,133.57,3.01813795]
[1768865479660,0.1,133.59,133.58,3.01813795]
[1768865479971,0.1,133.6,133.57,7.48646703]
[1768865480162,0.1,133.6,133.58,3.01813795]
[1768865480551,0.1,133.6,133.59,1.82880385]
[1768865480868,0.1,133.6,133.59,1.73880394]
[1768865482472,0.1,133.6,133.56,7.48727163]